bitfinex/quotes_SOLUSD_20251007
["timestamp","ask_amount","ask_price","bid_price","bid_amount"]
[1759871848372,6.03406602,224.04,223.97,2.28039205]
[1759871849069,31.75,224.08,224.02,1.57039205]
[1759871849278,31.2,224.07,224.02,1.57039205]
[1759871849660,31.2,224.07,224.02,2.28039205]
[1759871849867,0.55,224.09,224.02,1.57039205]
[1759871850177,37.23308394,224.08,224.02,0.71]
[1759871850362,37.23308394,224.08,224.01,1.57039205]
[1759871850675,37.78308394,224.08,224.01,1.57039205]
[1759871851272,37.78308394,224.08,223.98,4.46449805]
[1759871851273,1.57039205,224.04,223.98,4.46449805]
[1759871851455,0.55,224.04,223.98,6.0348901]
[1759871852364,0.55,224.04,223.98,6.7448901]
[1759871853974,6.03377294,224.05,223.98,6.7448901]
[1759871854676,6.03377294,224.05,223.99,5.17444008]
[1759871854977,4.46338089,224.05,223.99,6.74483213]
[1759871856871,0.55,224.06,224.0,1.57039205]
[1759871857070,0.55,224.06,223.99,5.17444008]
[1759871857071,31.75,224.08,224.01,0.71]
[1759871857280,0.55,224.07,223.99,4.46444008]
[1759871857468,0.55,224.07,224.01,1.57039205]
[1759871857774,0.55,224.07,224.01,2.28039205]
[1759871858171,4.46309024,224.06,224.01,2.28039205]
[1759871858375,4.46309024,224.06,224.02,0.71]
[1759871859249,2.12039205,224.05,223.99,0.67]
[1759871860179,4.46348866,224.04,223.99,0.67]
[1759871860675,4.46348866,224.04,224.0,0.67]
[1759871863081,4.46331257,224.05,224.01,0.67]
[1759871864387,4.46309024,224.06,224.01,0.67]
[1759871864678,4.46309024,224.06,224.02,0.67]
[1759871864885,6.58348229,224.06,224.0,0.67]
[1759871865270,1.57039205,224.03,223.95,0.67]
[1759871865472,0.55,224.02,223.95,2.24039205]
[1759871865673,0.55,224.02,223.96,2.24039205]
[1759871866689,5.01389315,224.02,223.96,6.70533464]
[1759871867166,4.46389315,224.02,223.96,6.70533464]
[1759871867800,4.46389315,224.02,223.96,5.13494259]
[1759871867970,4.46389315,224.02,223.97,1.57039205]
[1759871868170,4.46389315,224.02,223.97,2.24039205]
[1759871868384,5.01389315,224.02,223.97,2.24039205]
[1759871868685,5.01389315,224.02,223.97,0.67]
[1759871869974,5.01389315,224.02,223.95,1.57039205]
[1759871869975,2.12039205,224.01,223.94,5.13547694]
[1759871870889,2.12039205,224.01,223.94,0.67]
[1759871871564,20.8,224.05,223.95,1.57039205]
[1759871871765,25.26309024,224.06,224.03,1.57039205]
[1759871871968,25.26309024,224.06,224.01,0.67]
[1759871871969,56.46309024,224.06,224.01,0.67]
[1759871872582,56.46309024,224.06,223.97,4.46488368]
[1759871872583,11.15542791,224.11,224.02,0.67]
[1759871872785,31.2,224.1,224.05,1.57039205]
[1759871872983,0.55,224.09,224.05,1.57039205]
[1759871873674,0.55,224.09,224.04,1.57039205]
[1759871873905,5.01266355,224.09,224.04,2.24039205]
[1759871874092,4.46266355,224.09,224.04,2.24039205]
[1759871875579,4.46266355,224.09,224.05,1.57039205]
[1759871876992,4.46266355,224.09,224.05,0.68]
[1759871877784,0.55,224.08,224.02,1.57039205]
[1759871878893,0.55,224.08,224.02,2.25039205]
[1759871879494,4.46289106,224.07,224.02,2.25039205]
[1759871879700,4.46289106,224.07,224.03,0.68]
[1759871880009,4.46289106,224.07,224.02,2.25039205]
[1759871880882,4.46289106,224.07,224.03,0.68]
[1759871881306,5.01270058,224.08,224.03,0.68]
[1759871882105,4.46270058,224.08,224.02,1.57039205]
[1759871882310,4.46270058,224.08,224.04,1.57039205]
[1759871882496,4.46270058,224.08,224.05,0.68]
[1759871882808,35.66239721,224.1,224.06,0.68]
[1759871883113,35.66239721,224.1,224.07,0.68]
[1759871885295,35.66239721,224.1,224.08,0.68]
[1759871885619,4.46239721,224.1,224.08,0.68]
[1759871885790,35.66210789,224.11,224.08,0.68]
[1759871887091,35.66210789,224.11,224.06,1.57039205]
[1759871887296,37.23249994,224.11,224.05,1.57039205]
[1759871887514,37.23249994,224.11,224.05,2.25039205]
[1759871888922,37.23249994,224.11,224.06,0.68]
[1759871890026,37.23249994,224.11,224.05,1.57039205]
[1759871890322,37.23249994,224.11,224.07,0.68]
[1759871890815,35.66210789,224.11,224.07,0.68]
[1759871891009,35.66210789,224.11,224.06,1.57039205]
[1759871891237,0.55,224.1,224.01,79.2]
[1759871891528,1.57039205,224.05,224.0,0.68]
[1759871891730,1.57039205,224.05,224.01,0.68]
[1759871891905,32.77039205,224.06,224.01,0.68]
[1759871892105,31.75,224.06,224.01,5.14395433]
[1759871892403,31.2,224.06,224.02,0.68]
[1759871894500,36.21309333,224.06,224.01,4.46395433]
[1759871894808,35.66309333,224.06,224.01,5.14395433]
[1759871895012,35.66309333,224.06,224.02,0.68]
[1759871896923,31.2,224.06,224.02,0.68]
[1759871897319,35.66309258,224.06,224.01,7.59909219]
[1759871897626,3.00513786,224.05,223.99,83.66438359]
[1759871898617,7.46854912,224.05,223.99,84.34438359]
[1759871899709,4.46341126,224.05,224.0,0.68]
[1759871899913,4.46341126,224.05,224.01,0.68]
[1759871900727,5.01341126,224.05,223.99,82.33513786]
[1759871900909,5.01341126,224.05,223.99,86.79960543]
[1759871901110,2.45513786,224.02,223.96,4.46506786]
[1759871901327,33.65513786,224.02,223.97,0.68]
[1759871901521,34.20513786,224.02,223.97,0.68]
[1759871901714,31.2,224.02,223.98,0.68]
[1759871902038,31.2,224.02,223.97,2.45513786]
[1759871902219,31.2,224.02,223.99,3.13513786]
[1759871902416,31.2,224.03,224.0,0.68]
[1759871902928,31.2,224.03,223.99,2.45513786]
[1759871903132,31.2,224.06,224.02,2.45513786]
[1759871903334,31.2,224.06,224.03,0.68]
[1759871905235,35.66312267,224.06,224.02,2.45513786]
[1759871905438,35.66312267,224.06,224.02,0.68]
[1759871907121,35.66312267,224.06,224.01,2.45513786]
[1759871907334,36.21312267,224.06,224.01,3.11513786]
[1759871909137,38.11826053,224.06,223.97,110.4]
[1759871909319,2.45513786,224.02,223.95,81.65513786]
[1759871909642,31.2,224.01,223.96,3.11513786]
[1759871909941,31.2,224.01,223.97,3.11513786]
[1759871910439,31.2,224.01,223.97,0.66]
[1759871912140,35.66411968,224.01,223.97,0.66]
[1759871912441,0.55,224.0,223.95,4.46524689]
[1759871912612,35.66411968,224.01,223.96,0.66]
[1759871912815,36.21411968,224.01,223.96,0.66]
[1759871915037,0.55,224.0,223.95,4.46524689]
[1759871915236,21.35,224.04,223.99,2.45513786]
[1759871915537,31.2,224.08,224.03,2.45513786]
[1759871915711,31.2,224.08,224.06,2.45513786]
[1759871916112,31.2,224.08,224.05,2.45513786]
[1759871916437,35.66273323,224.08,224.05,2.45513786]
[1759871917555,31.2,224.08,224.07,2.45513786]
[1759871917953,31.2,224.08,224.07,3.11513786]
[1759871918923,4.46213035,224.11,224.07,3.11513786]
[1759871919131,31.2,224.1,224.08,2.45513786]
[1759871919330,3.00603015,224.09,224.08,2.45513786]
[1759871920341,3.00603015,224.09,224.07,3.11513786]
[1759871920545,31.2,224.1,224.07,3.11513786]
[1759871921547,31.2,224.1,224.08,3.17513786]
[1759871924041,31.2,224.1,224.08,2.45513786]
[1759871924244,31.2,224.1,224.06,5.18301421]
[1759871924441,31.2,224.1,224.07,3.17513786]
[1759871926328,35.66233853,224.1,224.07,3.17513786]
[1759871926831,31.2,224.1,224.07,3.17513786]
[1759871927248,36.21235903,224.1,224.07,2.45513786]
[1759871928055,35.66235903,224.1,224.07,2.45513786]
[1759871928747,35.66235903,224.1,224.07,3.17513786]
[1759871928927,31.2,224.1,224.07,3.17513786]
[1759871929949,31.2,224.1,224.07,0.72]
[1759871930550,25.26174362,224.13,224.08,3.17513786]
[1759871930733,31.18,224.12,224.09,0.72]
[1759871931947,35.64195366,224.12,224.09,0.72]
[1759871933262,36.19195366,224.12,224.08,2.45513786]
[1759871933637,35.64195366,224.12,224.08,3.17513786]
[1759871933841,31.18,224.12,224.08,3.17513786]
[1759871934041,35.6419043,224.12,224.08,3.17513786]
[1759871934238,31.18,224.12,224.09,0.72]
[1759871934431,6.95371111,224.17,224.1,0.72]
[1759871934631,2.45513786,224.13,224.06,2.45513786]
[1759871934883,31.18,224.12,224.06,3.17513786]
[1759871935142,33.63513786,224.12,224.06,3.17513786]
[1759871936338,35.64201896,224.12,224.06,7.63814459]
[1759871937534,31.18,224.12,224.08,2.45513786]
[1759871937734,31.18,224.12,224.09,0.68]
[1759871937935,31.18,224.12,224.1,0.68]
[1759871938155,31.18,224.12,224.08,2.45513786]
[1759871938340,31.18,224.12,224.09,0.68]
[1759871940356,2.45513786,224.1,224.02,79.2]
[1759871940567,35.6419479,224.12,224.02,92.60272968]
[1759871940568,2.45513786,224.07,224.02,92.60272968]
[1759871940745,2.45513786,224.07,224.02,14.08272968]
[1759871940939,6.91812674,224.07,224.02,13.40272968]
[1759871941143,2.45513786,224.04,224.02,13.40272968]
[1759871941345,31.18,224.03,223.97,6.92000475]
[1759871941551,2.45513786,224.02,223.96,0.68]
[1759871941871,34.18513786,224.03,223.96,3.13513786]
[1759871942054,34.18513786,224.03,223.97,0.68]
[1759871943560,38.64888745,224.03,223.97,5.14478466]
[1759871945179,38.64888745,224.03,223.97,0.68]
[1759871945380,2.45513786,224.01,223.97,0.68]
[1759871945549,2.45513786,223.99,223.93,0.68]
[1759871946172,20.8,224.02,223.96,2.45513786]
[1759871946373,4.46374959,224.03,224.0,2.45513786]
[1759871946374,31.18,224.03,224.0,2.45513786]
[1759871947566,31.18,224.07,224.02,2.45513786]
[1759871947750,31.18,224.07,224.03,3.13513786]
[1759871948654,31.18,224.07,224.04,2.45513786]
[1759871949183,35.64292202,224.07,224.04,2.45513786]
[1759871949470,31.18,224.08,224.05,2.45513786]
[1759871949660,20.8,224.09,224.05,2.45513786]
[1759871949857,20.8,224.08,224.05,2.45513786]
[1759871950272,0.55,224.13,224.07,2.45513786]
[1759871950447,31.18,224.12,224.07,2.45513786]
[1759871950648,31.73,224.11,224.05,2.45513786]
[1759871951262,36.19228683,224.11,224.05,2.45513786]
[1759871951456,35.64228683,224.11,224.05,2.45513786]
[1759871951765,2.45513786,224.08,224.02,13.40512522]
[1759871951956,31.73,224.07,224.0,6.91942357]
[1759871952350,2.45513786,224.06,224.0,4.46428571]
[1759871952554,3.00513786,224.06,224.0,4.46428571]
[1759871952875,5.01311595,224.06,224.0,6.91942357]
[1759871953057,4.46311595,224.06,224.01,0.68]
[1759871955287,5.01311595,224.06,224.01,0.68]
[1759871955580,5.01311595,224.06,224.0,6.03546445]
[1759871957480,5.01311595,224.06,224.0,6.71546445]
[1759871961500,0.55,224.06,224.0,6.71546445]
[1759871961693,31.18,224.06,224.01,0.68]
[1759871961866,31.18,224.06,224.02,0.68]
[1759871962071,31.18,224.06,224.0,4.46428571]
[1759871962285,31.18,224.06,224.01,0.68]
[1759871962671,31.18,224.06,224.01,5.14394531]
[1759871963092,31.73,224.06,224.01,5.14394531]
[1759871963282,31.73,224.06,224.01,0.68]
[1759871963489,31.73,224.06,223.99,6.03553183]
[1759871963490,31.18,224.06,223.99,4.46448502]
[1759871963671,32.75117874,224.06,224.01,0.68]
[1759871963998,31.18,224.06,224.02,0.68]
[1759871964906,31.73,224.06,224.01,4.46408642]
[1759871965302,31.73,224.06,224.01,5.14408642]
[1759871967897,0.55,224.06,224.01,0.69]
[1759871969597,0.55,224.06,224.01,5.1538885]
[1759871970994,0.55,224.06,224.0,4.46428571]
[1759871971209,6.0340766,224.07,224.02,0.69]
[1759871971510,6.5840766,224.07,224.02,0.69]
[1759871972112,6.0340766,224.07,224.0,4.46428571]
[1759871972316,6.5840766,224.07,224.0,5.15428571]
[1759871972703,1.57117874,224.05,223.98,97.07269761]
[1759871972896,0.55,224.04,223.98,84.35457676]
[1759871973093,0.55,224.04,223.98,88.81747462]
[1759871973408,1.57117874,224.05,223.99,0.69]
[1759871974303,1.57117874,224.05,224.0,4.46428571]
[1759871974487,2.12117874,224.05,224.0,5.15428571]
[1759871974684,6.58454242,224.05,224.0,0.69]
[1759871976205,1.57117874,224.01,223.94,13.5284391]
[1759871976415,1.57117874,223.99,223.94,0.69]
[1759871976589,1.57117874,223.97,223.95,0.69]
[1759871977904,1.57117874,223.99,223.96,0.69]
[1759871978611,1.57117874,223.99,223.94,0.69]
[1759871978796,1.57117874,223.99,223.95,0.69]
[1759871979909,1.57117874,223.99,223.96,0.69]
[1759871981109,37.21529472,224.01,223.97,0.69]
[1759871981611,37.21529472,224.01,223.98,0.69]
[1759871982308,35.64411598,224.01,223.98,0.69]
[1759871982511,20.8,224.03,223.99,2.26117874]
[1759871982809,35.64328944,224.05,224.01,1.57117874]
[1759871983403,35.64328944,224.05,224.02,0.69]
[1759871983809,31.18,224.05,224.03,0.69]
[1759871984012,4.46311476,224.06,224.02,1.57117874]
[1759871984192,20.8,224.05,224.04,0.69]
[1759871984392,20.8,224.05,224.02,2.26117874]
[1759871984713,25.2633673,224.05,224.02,2.26117874]
[1759871988115,4.46309024,224.06,224.02,2.26117874]
[1759871988318,4.46309024,224.06,224.03,0.69]
[1759871989500,35.64289106,224.07,224.04,0.69]
[1759871989694,31.18,224.07,224.04,0.69]
[1759871989893,4.46229361,224.1,224.06,1.57117874]
[1759871990097,35.64229361,224.1,224.06,1.57117874]
[1759871990291,3.00262,224.09,224.06,1.57117874]
[1759871991294,7.46519996,224.09,224.06,1.57117874]
[1759871992120,3.00262,224.09,224.07,0.69]
[1759871992302,3.00262,224.11,224.08,1.57117874]
[1759871992503,34.18262,224.13,224.1,1.57117874]
[1759871992703,3.00262,224.12,224.1,1.57117874]
[1759871992900,3.00262,224.12,224.11,0.69]
[1759871993520,3.00262,224.12,224.1,1.57117874]
[1759871994206,31.18,224.13,224.1,2.26117874]
[1759871994716,35.6416996,224.13,224.1,2.26117874]
[1759871996220,31.18,224.13,224.1,2.26117874]
[1759871996415,31.18,224.13,224.11,2.26117874]
[1759871996617,31.18,224.13,224.12,0.69]
[1759871997621,0.55,224.18,224.12,2.26117874]
[1759871997622,4.46070122,224.18,224.12,2.26117874]
[1759871997921,4.46070122,224.18,224.14,1.57117874]
[1759871997922,3.00064227,224.18,224.14,1.57117874]
[1759871998123,7.5611092,224.2,224.15,2.26117874]
[1759871998417,31.18,224.19,224.16,2.26117874]
[1759871998612,3.00064227,224.18,224.16,1.57117874]
[1759871998815,0.1,224.2,224.17,2.26117874]
[1759871999219,0.1,224.2,224.18,0.69]
[1759872000526,0.1,224.2,224.16,2.26117874]
[1759872000704,4.56033596,224.2,224.13,0.69]
[1759872000906,4.56033596,224.2,224.15,1.57117874]
[1759872001100,0.1,224.2,224.15,1.57117874]
[1759872001299,0.1,224.2,224.16,2.26117874]
[1759872001711,0.1,224.2,224.17,0.69]
[1759872002106,0.1,224.2,224.18,0.69]
[1759872002822,4.56033073,224.2,224.16,2.26117874]
[1759872003022,0.1,224.2,224.17,2.26117874]
[1759872004525,0.1,224.2,224.17,0.69]
[1759872004941,4.56031712,224.2,224.15,1.57117874]
[1759872005116,4.56031712,224.2,224.14,1.57117874]
[1759872005429,4.56031712,224.2,224.16,0.69]
[1759872007017,0.1,224.2,224.16,0.69]
[1759872008634,4.56034515,224.2,224.16,0.69]
[1759872009005,5.11034515,224.2,224.16,0.69]
[1759872009317,5.11034515,224.2,224.14,85.23267154]
[1759872009318,0.55,224.19,224.14,79.2]
[1759872009635,1.57117874,224.15,224.07,4.46270934]
[1759872009809,2.12117874,224.15,224.09,0.69]
[1759872010431,1.57117874,224.15,224.09,0.69]
[1759872010709,6.03261851,224.15,224.09,0.69]
[1759872012934,17.1858641,224.15,224.09,0.69]
[1759872013135,1.57117874,224.13,224.09,0.69]
[1759872014336,6.0330654,224.13,224.09,0.69]
[1759872015232,6.91565789,224.13,224.09,0.69]
[1759872015539,4.46151249,224.14,224.1,0.69]
[1759872017641,5.01151249,224.14,224.07,2.45377123]
[1759872017845,5.01151249,224.14,224.08,0.69]
[1759872020837,7.46528372,224.14,224.08,0.69]
[1759872021527,7.46528372,224.14,224.08,5.15266702]
[1759872021528,4.46151249,224.14,224.08,5.15266702]
[1759872021853,4.46151249,224.14,224.09,0.69]
[1759872022051,4.46151249,224.14,224.1,0.69]
[1759872022830,5.01151249,224.14,224.08,0.69]
[1759872023039,2.45377123,224.13,224.08,0.69]
[1759872023232,2.45377123,224.13,224.09,0.69]
[1759872023831,2.45377123,224.13,224.07,79.2]
[1759872023832,4.46189541,224.12,224.07,79.2]
[1759872024043,0.55,224.11,224.06,79.2]
[1759872024246,0.55,224.1,224.06,79.2]
[1759872024435,3.00377123,224.11,224.04,86.1172252]
[1759872024638,3.00377123,224.11,224.06,0.69]
[1759872025231,4.46229361,224.1,224.06,0.69]
[1759872025549,5.01189541,224.12,224.07,0.69]
[1759872027349,5.01189541,224.12,224.04,81.65377123]
[1759872027555,0.55,224.11,224.05,0.69]
[1759872028358,4.46189541,224.12,224.06,2.45377123]
[1759872028656,4.46189541,224.12,224.07,0.69]
[1759872028837,5.01189541,224.12,224.07,0.69]
[1759872029047,0.55,224.11,224.05,0.69]
[1759872029353,4.46229361,224.1,224.05,0.69]
[1759872029652,5.01229361,224.1,224.05,0.69]
[1759872030359,5.01229361,224.1,224.06,0.69]
[1759872030564,4.46229361,224.1,224.06,0.69]
[1759872031453,4.4620945,224.11,224.06,0.69]
[1759872031645,5.0120945,224.11,224.06,0.69]
[1759872033378,3.83508297,224.2,224.1,2.45377123]
[1759872033542,0.1,224.2,224.19,2.45377123]
[1759872033741,0.1,224.2,224.19,3.14377123]
[1759872035249,0.1,224.2,224.19,2.45377123]
[1759872036258,0.1,224.2,224.19,3.14377123]
[1759872037766,0.1,224.2,224.19,2.45377123]
[1759872038267,0.1,224.2,224.19,3.14377123]
[1759872039065,0.65,224.2,224.13,31.24]
[1759872039270,3.00377123,224.19,224.09,0.66]
[1759872039454,26.80121389,224.19,224.09,3.11377123]
[1759872039656,2.45377123,224.17,224.1,0.66]
[1759872040383,5.01109921,224.16,224.08,0.66]
[1759872040746,7.46487044,224.16,224.08,0.66]
[1759872041380,31.26,224.15,224.08,0.66]
[1759872041558,20.8,224.12,224.04,2.45377123]
[1759872041761,20.8,224.12,224.04,3.11377123]
[1759872042073,21.35,224.12,224.04,3.11377123]
[1759872042267,20.8,224.12,224.04,0.66]
[1759872042495,2.45377123,224.07,224.0,0.66]
[1759872042789,3.00377123,224.07,224.0,0.66]
[1759872043281,2.45377123,224.05,223.97,5.12487071]
[1759872043459,3.00377123,224.05,223.97,5.12487071]
[1759872044053,23.80377123,224.05,223.97,0.66]
[1759872044462,4.46388715,224.02,223.95,0.66]
[1759872044773,5.01388715,224.02,223.95,0.66]
[1759872044973,5.01388715,224.02,223.95,5.12517859]
[1759872045873,2.45377123,224.03,223.96,0.66]
[1759872046490,6.91748147,224.03,223.96,3.11377123]
[1759872046968,7.46748147,224.03,223.96,3.11377123]
[1759872047882,6.91748147,224.03,223.94,38.17924031]
[1759872048179,7.46748147,224.03,223.95,0.66]
[1759872048554,7.46748147,224.03,223.95,5.12525445]
[1759872049366,7.46748147,224.03,223.95,4.46525445]
[1759872049564,7.46748147,224.03,223.96,5.12501565]
[1759872056094,7.46748147,224.03,223.96,0.66]
[1759872056588,31.3,224.02,223.94,79.2]
[1759872056791,31.3,224.02,223.93,0.66]
[1759872056792,3.00377123,224.01,223.93,0.66]
[1759872056977,2.45377123,223.99,223.91,79.2]
[1759872057172,0.55,223.98,223.92,0.71]
[1759872057693,2.45377123,223.99,223.92,5.17582938]
[1759872057875,20.8,224.0,223.94,2.45377123]
[1759872058190,20.8,224.0,223.95,0.71]
[1759872058391,4.46388298,224.03,223.99,2.45377123]
[1759872058580,4.46388298,224.03,223.99,3.16377123]
[1759872060185,4.46388298,224.03,223.99,2.45377123]
[1759872060578,4.46388298,224.03,223.99,3.16377123]
[1759872062701,4.46388298,224.03,223.99,0.71]
[1759872063305,2.45377123,224.01,223.94,79.2]
[1759872063697,0.55,224.0,223.94,79.2]
[1759872064206,21.35,224.01,223.95,0.71]
[1759872064391,23.80377123,224.01,223.95,0.71]
[1759872065200,28.26793483,224.01,223.95,0.71]
[1759872066509,5.01439932,224.0,223.94,83.66543985]
[1759872066682,5.01439932,224.0,223.94,84.37543985]
[1759872067381,5.01439932,224.0,223.94,5.17543985]
[1759872067701,34.30377123,223.99,223.92,84.37587486]
[1759872068411,34.30377123,223.99,223.93,0.71]
[1759872068703,4.46468434,223.98,223.93,0.71]
[1759872069080,5.01468434,223.98,223.93,0.71]
[1759872070601,5.01468434,223.98,223.92,83.66587486]
[1759872071592,5.01468434,223.98,223.92,84.37587486]
[1759872073407,5.01468434,223.98,223.92,0.71]
[1759872074505,35.76450559,223.99,223.93,2.45377123]
[1759872074707,35.76450559,223.99,223.94,0.71]
[1759872074900,35.76450559,223.99,223.95,0.71]
[1759872075508,31.26,223.98,223.95,0.71]
[1759872076901,31.26,223.98,223.93,6.91942216]
[1759872077205,31.26,223.98,223.94,0.71]
[1759872077710,139.57282703,224.09,223.97,1.57211362]
[1759872077896,22.37211362,224.05,223.98,0.71]
[1759872078208,31.28,224.04,223.98,2.28211362]
[1759872078610,2.12211362,224.03,223.95,1.57211362]
[1759872078786,1.57211362,224.03,223.97,0.71]
[1759872078988,31.3,224.03,223.97,2.28211362]
[1759872079192,35.76376024,224.03,223.98,0.71]
[1759872079400,35.76376024,224.03,223.99,0.71]
[1759872079611,20.8,224.03,224.0,0.71]
[1759872079796,31.3,224.02,224.0,0.71]
[1759872080705,31.3,224.02,223.98,2.28211362]
[1759872081003,31.3,224.02,223.99,0.71]
[1759872083317,31.3,224.02,223.98,1.57211362]
[1759872083514,31.3,224.02,224.0,0.71]
[1759872084117,31.3,224.02,223.98,2.28211362]
[1759872084307,31.3,224.02,223.99,0.71]
[1759872087021,35.76388798,224.02,223.97,6.03690847]
[1759872087509,35.76388798,224.02,223.98,0.71]
[1759872087709,11.13534705,224.09,224.01,1.57211362]
[1759872087927,11.13534705,224.09,224.05,1.57211362]
[1759872087928,34.28444346,224.08,224.05,1.57211362]
[1759872088229,31.28,224.08,224.07,1.57211362]
[1759872088428,31.28,224.08,224.07,2.28211362]
[1759872088599,4.46132786,224.15,224.07,2.28211362]
[1759872088794,31.3,224.14,224.1,1.57211362]
[1759872089007,31.3,224.14,224.11,1.57211362]
[1759872089325,31.3,224.14,224.11,2.28211362]
[1759872089902,31.3,224.14,224.12,2.28211362]
[1759872090426,4.46085229,224.18,224.13,2.28211362]
[1759872090722,31.3,224.17,224.14,0.71]
[1759872091922,31.3,224.17,224.14,2.28211362]
[1759872092323,21.45,224.2,224.15,0.71]
[1759872092324,0.1,224.2,224.15,0.71]
[1759872092512,31.3,224.19,224.15,0.71]
[1759872092828,4.560408,224.2,224.14,6.033595]
[1759872092829,31.3,224.18,224.14,6.033595]
[1759872093016,31.3,224.18,224.15,0.71]
[1759872093216,31.3,224.18,224.16,0.71]
[1759872096231,31.3,224.18,224.17,0.71]
[1759872096802,31.3,224.18,224.15,2.28211362]
[1759872097007,31.3,224.18,224.16,0.71]
[1759872098529,31.3,224.18,224.17,0.71]
[1759872099143,31.3,224.18,224.16,1.57211362]
[1759872099433,31.3,224.18,224.16,0.69]
[1759872100008,31.3,224.18,224.17,0.69]
[1759872100537,31.3,224.18,224.17,2.26211362]
[1759872100716,20.9,224.2,224.17,2.26211362]
[1759872101040,52.16,224.2,224.17,2.26211362]
[1759872101213,31.36,224.2,224.17,2.26211362]
[1759872102319,31.36,224.2,224.17,0.69]
[1759872103339,0.1,224.2,224.17,0.69]
[1759872103630,31.36,224.2,224.17,0.69]
[1759872106030,31.36,224.2,224.16,6.03320171]
[1759872106238,31.36,224.2,224.17,0.69]
[1759872107934,20.8,224.17,224.09,0.69]
[1759872108146,1.57211362,224.15,224.09,0.69]
[1759872108317,1.57211362,224.15,224.09,2.26211362]
[1759872108634,33.34211362,224.16,224.09,2.26211362]
[1759872109236,37.80327367,224.16,224.1,4.46229361]
[1759872109925,37.80327367,224.16,224.1,6.03440723]
[1759872110841,37.80327367,224.16,224.09,5.15248065]
[1759872110842,2.12211362,224.15,224.09,5.15248065]
[1759872111732,2.12211362,224.15,224.08,1.57211362]
[1759872111733,1.57211362,224.15,224.1,5.15224459]
[1759872111916,37.80327367,224.16,224.1,5.15224459]
[1759872112318,37.80327367,224.16,224.1,0.69]
[1759872112937,1.57211362,224.15,224.09,4.46249274]
[1759872113147,2.12211362,224.15,224.09,4.46249274]
[1759872113439,2.12211362,224.15,224.09,5.15249274]
[1759872114219,2.12211362,224.15,224.06,4.46308444]
[1759872114220,1.57211362,224.12,224.06,4.46308444]
[1759872114429,31.22,224.11,224.06,5.15308444]
[1759872114639,31.22,224.11,224.07,0.69]
[1759872116142,31.22,224.11,224.07,5.1528091]
[1759872117239,36.23209871,224.11,224.06,1.57211362]
[1759872117639,36.23209871,224.11,224.06,2.29211362]
[1759872118449,36.23209871,224.11,224.06,6.75510273]
[1759872118744,20.8,224.13,224.06,6.03510273]
[1759872118947,31.24,224.12,224.07,2.29211362]
[1759872119146,31.24,224.12,224.08,0.72]
[1759872121245,31.79,224.12,224.08,0.72]
[1759872121950,31.24,224.12,224.08,0.72]
[1759872122149,35.70191687,224.12,224.08,0.72]
[1759872122350,35.70191687,224.12,224.03,13.21299763]
[1759872122556,35.70191687,224.12,224.06,2.29211362]
[1759872122947,36.25191687,224.12,224.06,2.29211362]
[1759872123637,36.25191687,224.12,224.06,6.75506215]
[1759872124545,37.27403049,224.12,224.03,83.66351968]
[1759872124739,1.57211362,224.1,224.03,6.7556333]
[1759872124943,33.34211362,224.09,224.03,4.46351968]
[1759872125132,33.34211362,224.09,224.03,5.18351968]
[1759872125628,33.34211362,224.09,224.03,0.72]
[1759872125830,0.55,224.08,224.03,0.72]
[1759872126051,32.79211362,224.09,224.02,6.03597338]
[1759872126256,0.55,224.07,224.02,6.03597338]
[1759872126442,0.55,224.07,224.02,6.75597338]
[1759872126862,0.55,224.07,224.03,0.72]
[1759872127038,35.68251316,224.09,224.03,1.57211362]
[1759872127239,35.68251316,224.09,224.04,0.72]
[1759872127437,36.23251316,224.09,224.04,2.29211362]
[1759872128751,11.15473853,224.12,224.04,2.29211362]